fUST/lending_fUST_20250130
["ID","MTS","AMOUNT","RATE_DAILY","PERIOD"]
[350954784,1738240043278,-500.0,0.00018508,2]
[350954785,1738240043299,-500.0,0.00018508,2]
[350954786,1738240043320,-500.0,0.00018508,2]
[350954787,1738240043341,-500.0,0.00018509,2]
[350954788,1738240043362,-500.0,0.00018509,2]
[350954789,1738240043386,-532.35211508,0.00018558,2]
[350954790,1738240043406,-420.0,0.00018566,2]
[350954791,1738240043426,-395.0,0.00018577,2]
[350954792,1738240043446,-154.42,0.000186,2]
[350954793,1738240043467,-154.42,0.000186,2]
[350954794,1738240043491,-500.0,0.00018643,2]
[350954795,1738240043513,-581.23,0.00018643,2]
[350954796,1738240043535,-3327.02,0.00018643,2]
[350954797,1738240043559,-249.65,0.00018643,2]
[350954798,1738240043582,-1270.25,0.00018643,2]
[350954799,1738240043603,-500.0,0.00018645,2]
[350954800,1738240043628,-500.0,0.00018645,2]
[350954801,1738240043651,-500.0,0.00018645,2]
[350954802,1738240043672,-500.0,0.00018645,2]
[350954803,1738240043694,-500.0,0.00018645,2]
[350954804,1738240043716,-500.0,0.00018646,2]
[350954805,1738240043736,-500.0,0.00018678,2]
[350954806,1738240043756,-1200.0,0.00018758,2]
[350954807,1738240043778,-500.0,0.0001878,2]
[350954808,1738240043800,-581.23,0.0001878,2]
[350954809,1738240043822,-3327.02,0.0001878,2]
[350954810,1738240043844,-1270.25,0.0001878,2]
[350954811,1738240043866,-500.0,0.00018782,2]
[350954812,1738240043887,-635.97011696,0.00018782,2]
[350954813,1738240043907,-500.0,0.00018782,2]
[350954814,1738240043928,-500.0,0.00018782,2]
[350954815,1738240043949,-383.21,0.00018783,2]
[350954816,1738240043972,-336.84212147,0.000189,2]
[350954817,1738240043994,-500.0,0.00018917,2]
[350954818,1738240044019,-581.23,0.00018917,2]
[350954819,1738240044042,-3327.02,0.00018917,2]
[350954820,1738240044065,-1270.25,0.00018917,2]
[350954821,1738240044089,-500.0,0.00018918,2]
[350954822,1738240044110,-282.03,0.00018919,2]
[350954823,1738240044132,-500.0,0.00018919,2]
[350954824,1738240044154,-500.0,0.00018919,2]
[350954825,1738240044177,-500.0,0.00018999,2]
[350954826,1738240044200,-500.0,0.00018999,2]
[350954827,1738240044223,-31413.38383298,0.00019,5]
[350954828,1738240044244,-302.78807257,0.00019,2]
[350954829,1738240044266,-500.0,0.00019054,2]
[350954830,1738240044288,-581.23,0.00019054,2]
[350954831,1738240044310,-3327.02,0.00019054,2]
[350954832,1738240044332,-1270.25,0.00019054,2]
[350954833,1738240044353,-500.0,0.00019056,2]
[350954834,1738240044374,-499.0,0.00019178,2]
[350954835,1738240044395,-500.0,0.00019178,7]
[350954836,1738240044416,-263.49949,0.00019178,2]
[350954837,1738240044436,-302.78807257,0.0001919,2]
[350954838,1738240044458,-500.0,0.00019191,2]
[350954839,1738240044480,-581.23,0.00019191,2]
[350954840,1738240044502,-3327.02,0.00019191,2]
[350954841,1738240044524,-1270.25,0.00019191,2]
[350954842,1738240044545,-500.0,0.00019328,2]
[350954843,1738240044570,-581.23,0.00019328,2]
[350954844,1738240044593,-3327.02,0.00019328,2]
[350954845,1738240044619,-1270.25,0.00019328,2]
[350954846,1738240044643,-500.0,0.00019329,2]
[350954847,1738240044665,-302.78807257,0.0001938,2]
[350954848,1738240044688,-500.0,0.00019465,2]
[350954849,1738240044711,-581.23,0.00019465,2]
[350954850,1738240044733,-3327.02,0.00019465,2]
[350954851,1738240044757,-1270.25,0.00019465,2]
[350954852,1738240044778,-302.78807257,0.0001957,2]
[350954853,1738240044800,-500.0,0.00019602,2]
[350954854,1738240044822,-581.23,0.00019602,2]
[350954855,1738240044844,-3327.02,0.00019602,2]
[350954856,1738240044867,-1270.25,0.00019602,2]
[350954857,1738240044890,-500.0,0.00019739,2]
[350954858,1738240044914,-581.23,0.00019739,2]
[350954859,1738240044935,-3327.02,0.00019739,2]
[350954860,1738240044958,-1270.25,0.00019739,2]
[350954861,1738240044980,-500.0,0.0001974,2]
[350954862,1738240045000,-178.48026778,0.0001976,2]
[350954863,1738240045022,-500.0,0.00019863,9]
[350954864,1738240045046,-500.0,0.00019876,2]
[350954865,1738240045072,-581.23,0.00019876,2]
[350954866,1738240045095,-3327.02,0.00019876,2]
[350954867,1738240045122,-1270.25,0.00019876,2]
[350954868,1738240045146,-500.0,0.00019877,2]
[350954869,1738240045169,-500.0,0.00019877,2]
[350954870,1738240045190,-263.649797,0.00019995,7]
[350954871,1738240045213,-500.0,0.00019999,2]
[350954872,1738240045234,-500.0,0.0002,7]
[350954873,1738240045256,-500.0,0.0002,7]
[350954874,1738240045278,-500.0,0.0002,7]
[350954875,1738240045300,-500.0,0.0002,7]
[350954876,1738240045321,-500.0,0.0002,7]
[350954877,1738240045342,-500.0,0.0002,7]
[350954878,1738240045363,-500.0,0.0002,7]
[350954879,1738240045383,-500.0,0.0002,7]
[350954880,1738240045404,-500.0,0.0002,7]
[350954881,1738240045426,-500.0,0.0002,7]
[350954882,1738240045447,-500.0,0.0002,7]
[350954883,1738240045469,-462.39,0.0002,7]
[350954884,1738240045490,-160.0,0.0002,2]
[350954885,1738240045510,-14958.0,0.0002,2]
[350954886,1738240045532,-160.0,0.0002,3]
[350954887,1738240045555,-311.64,0.00020013,2]
[350954888,1738240045596,-581.23,0.00020013,2]
[350954889,1738240045620,-3327.02,0.00020013,2]
[350954890,1738240045642,-1270.25,0.00020013,2]
[350954891,1738240045667,-346.92206187,0.00020014,2]
[350954892,1738240045691,-500.0,0.00020149,2]
[350954893,1738240045715,-154.40145925,0.00020149,2]
[350954894,1738240045736,-529.84222614,0.00020149,2]
[350954895,1738240045758,-581.34579956,0.0002015,2]
[350954896,1738240045780,-3327.05542118,0.0002015,2]
[350954897,1738240045802,-1270.42,0.0002015,2]
[350954898,1738240045821,-500.0,0.0002022,2]
[350954899,1738240045843,-587.0,0.00020278,2]
[350954900,1738240045863,-500.0,0.0002031,2]
[350954901,1738240045884,-153.0,0.00020316,2]
[350954902,1738240045905,-153.0,0.00020316,2]
[350954903,1738240045926,-153.0,0.00020316,2]
[350954904,1738240045948,-153.0,0.00020318,2]
[350954905,1738240045969,-153.0,0.00020318,2]
[350954906,1738240045990,-153.0,0.00020318,2]
[350954907,1738240046010,-153.0,0.00020318,2]
[350954908,1738240046030,-153.0,0.0002032,2]
[350954909,1738240046051,-153.0,0.0002032,2]
[350954910,1738240046073,-153.0,0.0002032,2]
[350954911,1738240046095,-153.0,0.0002032,2]
[350954912,1738240046115,-153.0,0.00020322,2]
[350954913,1738240046136,-153.0,0.00020322,2]
[350954914,1738240046157,-153.0,0.00020322,2]
[350954915,1738240046179,-153.0,0.00020322,2]
[350954916,1738240046200,-153.0,0.00020324,2]
[350954917,1738240046222,-153.0,0.00020324,2]
[350954918,1738240046246,-153.46,0.000204,31]
[350954919,1738240046270,-153.46,0.000204,31]
[350954920,1738240046294,-153.46,0.000204,31]
[350954921,1738240046318,-153.46,0.000204,31]
[350954922,1738240046342,-153.46,0.000204,31]
[350954923,1738240046367,-153.46,0.000204,31]
[350954924,1738240046390,-153.46,0.000204,31]
[350954925,1738240046410,-218.550544,0.00020447,2]
[350954926,1738240046430,-499.0,0.00020547,4]
[350954927,1738240046450,-500.0,0.00020547,11]
[350954928,1738240046471,-497.2184366,0.00020575,2]
[350954929,1738240046492,-154.1572399,0.00020575,2]
[350954930,1738240046512,-153.0,0.00020575,2]
[350954931,1738240046533,-151.0,0.000209,3]
[350954932,1738240046555,-3000.0,0.00021,2]
[350954933,1738240046576,-4033.535001,0.0002101,2]
[350954934,1738240046596,-154.083,0.0002109,2]
[350954935,1738240046623,-11173.63836772,0.0002115,5]
[350954936,1738240046643,-157.0,0.00021151,2]
[350954937,1738240046664,-157.0,0.00021151,2]
[350954938,1738240046685,-157.0,0.00021151,2]
[350954939,1738240046705,-157.0,0.00021151,2]
[350954940,1738240046726,-157.0,0.00021151,2]
[350954941,1738240046746,-157.0,0.00021151,2]
[350954942,1738240046767,-157.0,0.00021151,2]
[350954943,1738240046788,-157.0,0.00021151,2]
[350954944,1738240046808,-157.0,0.00021151,2]
[350954945,1738240046829,-157.0,0.00021151,2]
[350954946,1738240046851,-157.0,0.00021151,2]
[350954947,1738240046873,-157.0,0.00021151,2]
[350954948,1738240046895,-157.0,0.00021151,2]
[350954949,1738240046915,-157.0,0.00021151,2]
[350954950,1738240046936,-157.0,0.00021151,2]
[350954951,1738240046956,-157.0,0.00021151,2]
[350954952,1738240046977,-157.0,0.00021151,2]
[350954953,1738240046997,-157.0,0.00021151,2]
[350954954,1738240047018,-158.0,0.00021151,2]
[350954955,1738240047039,-161.87,0.00021158,2]
[350954956,1738240047060,-500.0,0.00021232,13]
[350954957,1738240047081,-151.0,0.000214,3]
[350954958,1738240047102,-1441.55289668,0.00021546,120]
[350954959,1738240047123,-395.0,0.00021577,2]
[350954960,1738240047144,-14958.0,0.000216,4]
[350954961,1738240047165,-506.95375784,0.00021714,30]
[350954962,1738240047187,-151.0,0.000218,4]
[350954963,1738240047211,-151.0,0.000218,4]
[350954964,1738240047236,-153.46,0.000219,31]
[350954965,1738240047259,-153.46,0.000219,31]
[350954966,1738240047284,-153.46,0.000219,31]
[350954967,1738240047310,-153.46,0.000219,31]
[350954968,1738240047335,-153.46,0.000219,31]
[350954969,1738240047361,-153.46,0.000219,31]
[350954970,1738240047385,-153.46,0.000219,31]
[350954971,1738240047408,-153.46,0.000219,31]
[350954972,1738240047429,-499.0,0.00021917,6]
[350954973,1738240047451,-500.0,0.00021917,15]
[350954974,1738240047472,-315.26878748,0.00021918,2]
[350954975,1738240047493,-26799.78983752,0.0002198,3]
[350954976,1738240047513,-150.0,0.00022,2]
[350954977,1738240047535,-422.0,0.00022,2]
[350954978,1738240047557,-160.0,0.0002212,3]
[350954979,1738240047580,-823.0,0.00022148,2]
[350954980,1738240047604,-422.0,0.00022192,2]
[350954981,1738240047632,-150.12,0.00022206,14]
[350954982,1738240047655,-201.93119075,0.00022206,14]
[350954983,1738240047680,-721.0,0.00022206,3]
[350954984,1738240047704,-500.0,0.00022206,14]
[350954985,1738240047727,-150.12,0.00022206,14]
[350954986,1738240047748,-150.12,0.00022206,2]
[350954987,1738240047769,-150.12,0.00022206,14]
[350954988,1738240047792,-150.12,0.00022206,14]
[350954989,1738240047812,-500.0,0.00022206,14]
[350954990,1738240047832,-150.66622218,0.00022206,14]
[350954991,1738240047855,-151.0,0.00022211,7]
[350954992,1738240047875,-151.0,0.00022211,7]
[350954993,1738240047897,-151.0,0.00022211,7]
[350954994,1738240047918,-151.0,0.00022211,7]
[350954995,1738240047941,-151.0,0.00022211,7]
[350954996,1738240047963,-151.0,0.00022211,7]
[350954997,1738240047984,-175.716843,0.00022211,7]
[350954998,1738240048005,-151.0,0.00022211,7]
[350954999,1738240048027,-151.0,0.00022211,7]
[350955000,1738240048049,-151.0,0.00022211,7]
[350955001,1738240048073,-151.0,0.00022211,7]
[350955002,1738240048096,-151.0,0.00022211,7]
[350955003,1738240048118,-151.0,0.00022211,7]
[350955004,1738240048140,-151.0,0.00022211,7]
[350955005,1738240048163,-151.0,0.00022211,7]
[350955006,1738240048184,-151.0,0.00022211,7]
[350955007,1738240048206,-151.0,0.00022211,7]
[350955008,1738240048230,-151.0,0.00022211,7]
[350955009,1738240048252,-151.0,0.00022211,7]
[350955010,1738240048275,-234.392728,0.00022211,7]
[350955011,1738240048297,-151.644664,0.00022211,7]
[350955012,1738240048319,-151.0,0.00022211,7]
[350955013,1738240048341,-151.0,0.00022211,7]
[350955014,1738240048363,-151.0,0.00022211,7]
[350955015,1738240048385,-151.0,0.00022211,7]
[350955016,1738240048406,-151.0,0.00022211,7]
[350955017,1738240048427,-219.46823,0.00022211,7]
[350955018,1738240048449,-151.0,0.00022211,7]
[350955019,1738240048472,-151.0,0.00022211,7]
[350955020,1738240048494,-151.0,0.00022211,7]
[350955021,1738240048516,-151.0,0.00022211,7]
[350955022,1738240048539,-151.0,0.00022213,7]
[350955023,1738240048562,-267.179234,0.00022213,7]
[350955024,1738240048585,-151.0,0.00022213,7]
[350955025,1738240048609,-151.0,0.00022213,7]
[350955026,1738240048636,-151.0,0.00022213,7]
[350955027,1738240048659,-151.0,0.00022213,7]
[350955028,1738240048681,-151.0,0.00022213,7]
[350955029,1738240048704,-151.0,0.00022213,7]
[350955030,1738240048729,-277.221696,0.00022213,7]
[350955031,1738240048752,-151.0,0.00022213,7]
[350955032,1738240048775,-151.0,0.00022213,7]
[350955033,1738240048890,-151.0,0.00022213,7]
[350955034,1738240048918,-151.0,0.00022213,7]
[350955035,1738240048940,-151.0,0.00022213,7]
[350955036,1738240048963,-151.0,0.00022213,7]
[350955037,1738240048984,-151.0,0.00022213,7]
[350955038,1738240049004,-151.0,0.00022213,7]
[350955039,1738240049025,-151.0,0.00022213,7]
[350955040,1738240049045,-151.0,0.00022213,7]
[350955041,1738240049066,-151.0,0.00022213,7]
[350955042,1738240049087,-151.0,0.00022213,7]
[350955043,1738240049108,-151.0,0.00022213,7]
[350955044,1738240049129,-151.0,0.00022213,7]
[350955045,1738240049150,-151.0,0.00022213,7]
[350955046,1738240049172,-151.0,0.00022213,7]
[350955047,1738240049194,-151.0,0.00022213,7]
[350955048,1738240049217,-151.0,0.00022213,7]
[350955049,1738240049238,-151.0,0.00022213,7]
[350955050,1738240049259,-151.0,0.00022213,7]
[350955051,1738240049280,-151.0,0.00022213,7]
[350955052,1738240049302,-237.1443,0.00022213,7]
[350955053,1738240049323,-151.0,0.00022213,7]
[350955054,1738240049344,-151.0,0.00022213,7]
[350955055,1738240049365,-151.0,0.00022213,7]
[350955056,1738240049387,-151.0,0.00022213,7]
[350955057,1738240049409,-151.0,0.00022213,7]
[350955058,1738240049431,-151.0,0.00022213,7]
[350955059,1738240049453,-151.0,0.00022213,7]
[350955060,1738240049476,-151.0,0.00022213,7]
[350955061,1738240049497,-151.0,0.00022213,7]
[350955062,1738240049517,-151.0,0.00022213,7]
[350955063,1738240049539,-151.0,0.00022213,7]
[350955064,1738240049559,-151.0,0.00022213,7]
[350955065,1738240049581,-151.0,0.00022213,7]
[350955066,1738240049603,-151.0,0.00022213,7]
[350955067,1738240049629,-151.0,0.00022213,7]
[350955068,1738240049652,-151.0,0.00022213,7]
[350955069,1738240049674,-209.277424,0.00022213,7]
[350955070,1738240049697,-151.0,0.00022213,7]
[350955071,1738240049718,-151.0,0.00022213,7]
[350955072,1738240049740,-151.0,0.00022213,7]
[350955073,1738240049762,-151.0,0.00022213,7]
[350955074,1738240049798,-151.0,0.00022215,7]
[350955075,1738240049819,-151.0,0.00022215,7]
[350955076,1738240049840,-151.0,0.00022215,7]
[350955077,1738240049862,-151.0,0.00022215,7]
[350955078,1738240049885,-151.0,0.00022215,7]
[350955079,1738240049906,-151.0,0.00022215,7]
[350955080,1738240049926,-151.0,0.00022215,7]
[350955081,1738240049947,-151.0,0.00022215,7]
[350955082,1738240049969,-151.0,0.00022215,7]
[350955083,1738240049991,-151.0,0.00022215,7]
[350955084,1738240050013,-151.0,0.00022215,7]
[350955085,1738240050034,-159.331682,0.00022215,7]
[350955086,1738240050054,-151.0,0.00022215,7]
[350955087,1738240050076,-151.0,0.00022215,7]
[350955088,1738240050097,-151.0,0.00022215,7]
[350955089,1738240050119,-151.0,0.00022215,7]
[350955090,1738240050140,-151.0,0.00022215,7]
[350955091,1738240050161,-152.194572,0.00022215,7]
[350955092,1738240050184,-151.0,0.00022215,7]
[350955093,1738240050205,-151.0,0.00022215,7]
[350955094,1738240050227,-154.213577,0.00022215,7]
[350955095,1738240050248,-151.0,0.00022216,7]
[350955096,1738240050270,-151.0,0.00022216,7]
[350955097,1738240050291,-151.0,0.00022216,7]
[350955098,1738240050311,-151.0,0.00022216,7]
[350955099,1738240050332,-151.0,0.00022216,7]
[350955100,1738240050353,-151.0,0.00022216,7]
[350955101,1738240050373,-151.0,0.00022216,7]
[350955102,1738240050393,-259.68538367,0.00022216,7]
[350955103,1738240050415,-151.0,0.00022216,7]
[350955104,1738240050439,-151.0,0.00022216,7]
[350955105,1738240050463,-296.766994,0.00022216,7]
[350955106,1738240050487,-151.0,0.00022216,7]
[350955107,1738240050509,-151.969105,0.00022216,7]
[350955108,1738240050530,-159.783995,0.00022216,7]
[350955109,1738240050553,-260.054899,0.00022216,7]
[350955110,1738240050574,-260.054899,0.00022216,7]
[350955111,1738240050596,-260.054899,0.00022216,7]
[350955112,1738240050620,-260.054899,0.00022216,7]
[350955113,1738240050641,-260.054899,0.00022216,7]
[350955114,1738240050666,-260.054899,0.00022216,7]
[350955115,1738240050688,-260.054899,0.00022216,7]
[350955116,1738240050714,-260.054899,0.00022216,7]
[350955117,1738240050737,-260.054899,0.00022216,7]
[350955118,1738240050759,-260.054899,0.00022216,7]
[350955119,1738240050784,-260.054899,0.00022216,7]
[350955120,1738240050808,-260.054899,0.00022216,7]
[350955121,1738240050833,-260.054899,0.00022216,7]
[350955122,1738240050857,-260.054899,0.00022216,7]
[350955123,1738240050881,-260.054899,0.00022216,7]
[350955124,1738240050907,-260.054899,0.00022216,7]
[350955125,1738240050930,-260.054899,0.00022216,7]
[350955126,1738240050956,-260.054899,0.00022216,7]
[350955127,1738240050984,-260.054899,0.00022216,7]
[350955128,1738240051009,-260.054897,0.00022216,7]
[350955129,1738240051034,-151.0,0.00022216,7]
[350955130,1738240051059,-151.0,0.00022216,7]
[350955131,1738240051083,-151.0,0.00022216,7]
[350955132,1738240051109,-151.0,0.00022216,7]
[350955133,1738240051135,-151.0,0.00022216,7]
[350955134,1738240051162,-151.0,0.00022216,7]
[350955135,1738240051187,-151.0,0.00022216,7]
[350955136,1738240051211,-151.0,0.00022216,7]
[350955137,1738240051237,-151.0,0.00022216,7]
[350955138,1738240051261,-151.0,0.00022216,7]
[350955139,1738240051285,-151.0,0.00022216,7]
[350955140,1738240051309,-151.0,0.00022216,7]
[350955141,1738240051332,-234.051882,0.00022216,7]
[350955142,1738240051355,-151.0,0.00022216,7]
[350955143,1738240051377,-151.0,0.00022216,7]
[350955144,1738240051399,-151.0,0.00022216,7]
[350955145,1738240051421,-151.0,0.00022216,7]
[350955146,1738240051443,-151.0,0.00022216,7]
[350955147,1738240051467,-218.56689,0.00022216,7]
[350955148,1738240051490,-195.472946,0.00022216,7]
[350955149,1738240051513,-195.472946,0.00022216,7]
[350955150,1738240051534,-195.472946,0.00022216,7]
[350955151,1738240051556,-195.472946,0.00022216,7]
[350955152,1738240051578,-195.472946,0.00022216,7]
[350955153,1738240051599,-195.472946,0.00022216,7]
[350955154,1738240051625,-195.472946,0.00022216,7]
[350955155,1738240051646,-195.472946,0.00022216,7]
[350955156,1738240051668,-195.472946,0.00022216,7]
[350955157,1738240051689,-195.472946,0.00022216,7]
[350955158,1738240051713,-195.472946,0.00022216,7]
[350955159,1738240051734,-195.472946,0.00022216,7]
[350955160,1738240051755,-195.472946,0.00022216,7]
[350955161,1738240051776,-195.472946,0.00022216,7]
[350955162,1738240051797,-195.472946,0.00022216,7]
[350955163,1738240051818,-195.472946,0.00022216,7]
[350955164,1738240051838,-195.472946,0.00022216,7]
[350955165,1738240051858,-195.472946,0.00022216,7]
[350955166,1738240051879,-195.472946,0.00022216,7]
[350955167,1738240051901,-195.472938,0.00022216,7]
[350955168,1738240051921,-151.0,0.00022216,7]
[350955169,1738240051941,-160.649674,0.00022216,7]
[350955170,1738240051964,-151.0,0.00022216,7]
[350955171,1738240052094,-151.0,0.00022216,7]
[350955172,1738240052116,-151.0,0.00022216,7]
[350955173,1738240052137,-154.160052,0.00022216,7]
[350955174,1738240052159,-151.0,0.00022216,7]
[350955175,1738240052180,-160.0,0.0002222,7]
[350955176,1738240052201,-160.0,0.0002223,120]
[350955177,1738240052223,-500.0,0.00022273,2]
[350955178,1738240052243,-500.0,0.00022273,2]
[350955179,1738240052264,-500.0,0.00022273,2]
[350955180,1738240052286,-1191.37054974,0.00022279,3]
[350955181,1738240052306,-37706.54359642,0.000223,7]
[350955193,1738240147086,-8271.45462235,0.000155,2]
[350955227,1738240232119,-284.05,0.00016999,2]
[350955228,1738240232129,-500.0,0.00016999,2]
[350955229,1738240232139,-234.73,0.00016999,2]
[350955230,1738240232148,-150.0,0.00017,2]
[350955231,1738240232158,-500.0,0.00017136,2]
[350955232,1738240232167,-604.156246,0.00019101,2]
[350955233,1738240232179,-412.9675,0.00019101,2]
[350955234,1738240232226,-1317.836254,0.00019101,2]
[350955235,1738240232235,-499.0,0.00019178,2]
[350955236,1738240232245,-300.0,0.00019899,2]
[350955237,1738240232255,-12988.12326379,0.000199,2]
[350955238,1738240232265,-160.0,0.0002,3]
[350955239,1738240232274,-224.56141431,0.00020115,2]
[350955240,1738240232284,-4001.2890679,0.00020216,3]
[350955241,1738240232296,-12881.80451219,0.00020216,3]
[350955242,1738240232306,-790.5,0.00020409,15]
[350955243,1738240232315,-200.095599,0.0002045,2]
[350955244,1738240232325,-499.0,0.00020547,4]
[350955245,1738240232334,-7980.6426594,0.00021,2]
[350955246,1738240232345,-3061.02411744,0.00021,2]
[350955268,1738240237882,-500.0,0.00016999,2]
[350955270,1738240237891,-362.97452756,0.00017136,2]
[350955272,1738240237902,-137.02547244,0.00017136,2]
[350955274,1738240237911,-500.0,0.00017273,2]
[350955276,1738240237920,-500.0,0.0001741,2]
[350955278,1738240237929,-500.0,0.00017547,2]
[350955279,1738240237939,-500.0,0.00017684,2]
[350955281,1738240237948,-500.0,0.00017821,2]
[350955283,1738240237957,-500.0,0.00017958,2]
[350955285,1738240237966,-500.0,0.00018095,2]
[350955286,1738240237977,-500.0,0.00018232,2]
[350955289,1738240237987,-500.0,0.00018369,2]
[350955290,1738240237996,-500.0,0.00018506,2]
[350955292,1738240238005,-305.73287456,0.00018643,2]
[350955294,1738240238015,-2505.89279559,0.00021,2]
[350955297,1738240238033,-825.875,0.00021,2]
[350955300,1738240238044,-518.90920807,0.00021,2]
[350955302,1738240238055,-670.89738549,0.00021,2]
[350955304,1738240238066,-47687.06594324,0.00021,2]
[350955306,1738240238075,-160.0,0.00021133,2]
[350955309,1738240238085,-13597.7729851,0.00021214,2]
[350955311,1738240238094,-499.51014698,0.00021288,2]
[350955313,1738240238103,-420.0,0.0002167,2]
[350955316,1738240238113,-499.0,0.00021917,6]
[350955318,1738240238123,-304.93304723,0.00021918,2]
[350955321,1738240238132,-150.22,0.00022206,14]
[350955323,1738240238141,-150.22,0.00022206,14]
[350955326,1738240238150,-500.0,0.00022211,2]
[350955328,1738240238159,-220.8895583,0.00022211,2]
[350955330,1738240238168,-387.4877016,0.00022211,2]
[350955332,1738240238178,-11656.45956384,0.00022211,5]
[350955334,1738240238189,-695.17649006,0.00022211,5]
[350955389,1738240238701,-332.885003,0.00022211,5]
[350955426,1738240241240,-3022.17085959,0.00022211,5]
[350955427,1738240241249,-5586.81918386,0.00022211,5]
[350955428,1738240241258,-35647.00154481,0.00022212,61]
[350955429,1738240241269,-22853.71254169,0.00022212,61]
[350955462,1738240243916,-2212.17490001,0.00022212,61]
[350955466,1738240244773,-9541.39014242,0.00022212,61]
[350955475,1738240246230,-23031.86306,0.00022212,61]
[350955476,1738240250815,-41961.66560897,0.00022212,61]
[350955489,1738240497398,210.587786,0.00013973,2]
[350955499,1738241151120,-300.0,0.00016998,2]
[350955500,1738241151141,-935.03934155,0.00016999,2]
[350955501,1738241151163,-500.51824012,0.00016999,2]
[350955502,1738241151183,-543.38615178,0.00016999,2]
[350955503,1738241151203,-326.39705951,0.00016999,2]
[350955504,1738241151226,-500.0,0.00016999,2]
[350955505,1738241151248,-500.0,0.00016999,2]
[350955506,1738241151269,-500.0,0.00016999,2]
[350955507,1738241151289,-500.0,0.00016999,2]
[350955508,1738241151309,-500.0,0.00016999,2]
[350955509,1738241151329,-500.0,0.00016999,2]
[350955510,1738241151350,-196.00246403,0.00016999,2]
[350955511,1738241151371,-500.0,0.00016999,2]
[350955512,1738241151391,-500.0,0.00016999,2]
[350955513,1738241151411,-500.0,0.00016999,2]
[350955514,1738241151431,-403.718911,0.00016999,2]
[350955515,1738241151452,-167.93037148,0.00016999,2]
[350955516,1738241151472,-535.58,0.00016999,2]
[350955517,1738241151492,-500.0,0.00016999,2]
[350955518,1738241151512,-150.0,0.00017,2]
[350955519,1738241151532,-694.2331997,0.00017135,2]
[350955520,1738241151552,-501.51623784,0.00017136,2]
[350955521,1738241151572,-500.0,0.00017136,2]
[350955522,1738241151593,-170.271908,0.00017212,2]
[350955523,1738241151613,-170.271908,0.00017233,2]
[350955524,1738241151632,-170.271908,0.00017255,2]
[350955525,1738241151652,-170.271908,0.00017276,2]
[350955526,1738241151672,-170.271908,0.00017298,2]
[350955527,1738241151692,-500.0,0.00017408,2]
[350955528,1738241151713,-500.0,0.00017408,2]
[350955529,1738241151734,-500.0,0.00017408,2]
[350955530,1738241151756,-500.0,0.00017408,2]
[350955531,1738241151779,-500.0,0.00017408,2]
[350955532,1738241151800,-500.0,0.00017408,2]
[350955533,1738241151820,-500.0,0.00017408,2]
[350955534,1738241151841,-500.0,0.00017408,2]
[350955535,1738241151865,-500.0,0.00017408,2]
[350955536,1738241151888,-500.0,0.00017408,2]
[350955537,1738241151909,-425.14,0.00017408,2]